[Event "45th FIDE Olympiad 2024"]
[Site "Budapest"]
[Date "2024.09.15"]
[Round "5.38"]
[White "Kollars, Dmitrij"]
[Black "Petrov, Nikita"]
[Result "1/2-1/2"]
[ECO "B46"]
[WhiteElo "2659"]
[BlackElo "2574"]
[Annotator "TA"]
[PlyCount "45"]
[EventDate "2024.09.05"]
[EventType "team-tourn"]
[EventCountry "HUN"]
[SourceTitle "playchess.com"]
[Source "ChessBase"]
[SourceQuality "1"]
[WhiteTeam "Germany"]
[BlackTeam "Montenegro"]
[WhiteTeamCountry "GER"]
[BlackTeamCountry "MNE"]
[TimeControl "40/5400+30:1800+30"]

{[%evp 13,45,25,31,20,34,18,18,3,30,25,18,0,21,-38,-37,-69,-47,-92,-99,-97,-58,-117,-121,-133,-129,-106,-44,-65,0,-106,0,-67,0,-75]} 1. e4 {[%emt 0:00:05]} c5 {[%emt 0:00:23]} 2. Nf3 {[%emt 0:00:17]} Nc6 {[%emt 0:00:19]} 3. d4 {[%emt 0:01:16]} cxd4 {[%emt 0:00:10]} 4. Nxd4 {[%emt 0:00:04]} e6 {[%emt 0:00:31]} 5. Nc3 {[%emt 0:00:22]} a6 {[%emt 0:00:47]} 6. a3 {[%emt 0:02:30]} Be7 {[%emt 0:07:01]} 7. Be3 {[%emt 0:06:00]} Nf6 {[%emt 0:00:47]} 8. f4 {[%emt 0:00:15]} d6 {[%emt 0:01:15][%cal Bd7d6,Bd6d5][%mdl 32]} 9. Qd2 {[%emt 0:10:11]} O-O {[%emt 0:05:24]} 10. O-O-O {[%emt 0:00:55]} Bd7 {[%emt 0:08:23]} 11. Be2 {[%emt 0:02:29]} Nxd4 {[%emt 0:08:00]} 12. Qxd4 {[%emt 0:03:51]} Bc6 {[%emt 0:00:54]} 13. g4 {[%emt 0:03:11]} (13. f5 $11) 13... d5 $1 $15 {[%emt 0:03:30]} 14. e5 {[%emt 0:02:22]} Nd7 {[%emt 0:01:01]} 15. Rhg1 {[%emt 0:12:28][%cal Oh2h4]} b5 {[%emt 0:02:38]} 16. g5 {[%emt 0:12:58][%cal Of4f5]} Qb8 {[%emt 0:09:41]} 17. Rg3 {[%emt 0:02:49] [#]} (17. b4 $15) 17... a5 $1 $17 {[%emt 0:07:07] And now ...b4 would win.} 18. b4 {[%emt 0:11:37]} axb4 {[%emt 0:01:06]} 19. axb4 {[%emt 0:00:02]} Bd8 {[%emt 0:06:00]} (19... Ra6 $17 20. f5 Qxe5 (20... exf5 $2 21. Bf4 $19) (20... Nxe5 21. f6 $19) 21. Nxb5 exf5) 20. Qd3 {[%emt 0:09:12][%cal Og3h3]} Be7 {[%emt 0:08:40]} 21. Qd4 {[%emt 0:00:16]} Bd8 {[%emt 0:01:13]} 22. Qd3 $1 {[%emt 0:01:11][%cal Oc1d2]} Be7 {[%emt 0:11:31]} 23. Qd4 $1 {[%emt 0:04:29] Weighted Error Value: White=0.18 (very precise) /Black=0.24 (precise) .  Mistake:       	White=2     	Black=1      Inaccurate:     	White=2     	Black=3      OK:         	White=2     	Black=6      Best:        	White=1     	---        Strong:       	White=2     	Black=2} 1/2-1/2

[Event "45th FIDE Olympiad 2024"]
[Site "Budapest"]
[Date "2024.09.15"]
[Round "5.38"]
[White "Kalidjo, Imaan"]
[Black "Prasad, Rudr"]
[Result "1-0"]
[ECO "D00"]
[WhiteElo "1934"]
[BlackElo "1777"]
[PlyCount "69"]
[EventDate "2024.09.05"]
[EventType "team-tourn"]
[EventCountry "HUN"]
[WhiteTeam "Suriname"]
[BlackTeam "Fiji"]
[BlackTeamCountry "FIJ"]
[TimeControl "40/5400+30:1800+30"]

1. d4 d5 2. e3 Nf6 3. Bd3 c5 4. c3 e6 5. f4 Bd7 6. Nf3 Qb6 7. a4 Nc6 8. Nbd2 Bd6 9. Ne5 cxd4 10. exd4 h5 11. Qe2 g6 12. Ndf3 Rf8 13. Ng5 Bxe5 14. fxe5 Ne4 15. Bxe4 dxe4 16. Nxe4 O-O-O 17. Bg5 Kb8 18. Bxd8 Qxd8 19. O-O Ne7 20. Nd6 Nf5 21. Nxf5 exf5 22. d5 Re8 23. Rfe1 Qc7 24. Qe3 Qc4 25. Ra3 Qxd5 26. Qd4 Qe6 27. c4 f6 28. Rae3 Bc6 29. exf6 Be4 30. b4 Rf8 31. Rxe4 fxe4 32. Rxe4 Qxf6 33. Re8+ Kc7 34. Qc5+ Kd7 35. Rxf8 1-0

[Event "45th FIDE Olympiad 2024"]
[Site "Budapest"]
[Date "2024.09.15"]
[Round "5.39"]
[White "Djukic, Nikola"]
[Black "Bluebaum, Matthias"]
[Result "1/2-1/2"]
[ECO "B11"]
[WhiteElo "2515"]
[BlackElo "2640"]
[Annotator "TA"]
[PlyCount "38"]
[EventDate "2024.09.05"]
[EventType "team-tourn"]
[EventCountry "HUN"]
[SourceTitle "playchess.com"]
[Source "ChessBase"]
[SourceQuality "1"]
[WhiteTeam "Montenegro"]
[BlackTeam "Germany"]
[WhiteTeamCountry "MNE"]
[BlackTeamCountry "GER"]
[TimeControl "40/5400+30:1800+30"]

{[%evp 10,38,0,10,25,25,17,20,32,30,15,17,29,18,17,18,23,0,0,0,0,0,0,0,0,0,0,0,0,-4,0]} 1. e4 {[%emt 0:00:03]} c6 {[%emt 0:00:08]} 2. Nc3 {[%emt 0:00:10]} d5 {[%emt 0:00:05]} 3. Nf3 {[%emt 0:00:08]} Bg4 {[%emt 0:00:22]} 4. h3 {[%emt 0:00:11]} Bxf3 {[%emt 0:00:05]} 5. Qxf3 {[%emt 0:00:05]} e6 {[%emt 0:00:05]} 6. Be2 {[%emt 0:00:25]} d4 {[%emt 0:00:58]} 7. Nb1 {[%emt 0:01:45][%cal Bc3b1,Bb1d2,Bd2f3][%mdl 32]} Ne7 {[%emt 0:00:11]} 8. d3 {[%emt 0:08:36]} Ng6 {[%emt 0:00:17]} 9. g3 {[%emt 0:06:09]} h5 {[%emt 0:00:15]} 10. h4 {[%emt 0:00:54]} a5 {[%emt 0:00:27][%cal Ba7a5,Ba5a4][%mdl 32]} 11. Nd2 {[%emt 0:09:38]} a4 {[%emt 0:00:48]} 12. a3 {[%emt 0:00:06]} Nd7 {[%emt 0:03:54]} 13. Qg2 {[%emt 0:04:03]} e5 {[%emt 0:08:23] The position is equal.} 14. Nf3 {[%emt 0:04:44]} Be7 {[%emt 0:01:32]} 15. Ng5 {[%emt 0:00:24]} Qa5+ {[%emt 0:07:02]} 16. Bd2 {[%emt 0:16:06]} Qb6 {[%emt 0:00:18]} 17. Bc1 {[%emt 0:00:06]} Qa5+ {[%emt 0:01:28]} 18. Bd2 {[%emt 0:03:16]} Qb6 {[%emt 0:00:05]} 19. Bc1 {[%emt 0:00:07]} Qa5+ {[%emt 0:13:57] A rather calm draw.   Weighted Error Value: White=0.02 (flawless) /Black=0.01 (flawless) .  OK:         	White=9     	Black=8} 1/2-1/2

[Event "45th FIDE Olympiad 2024"]
[Site "Budapest"]
[Date "2024.09.15"]
[Round "5.39"]
[White "Terubea, Ronald"]
[Black "Chashawa, Shaief"]
[Result "1/2-1/2"]
[ECO "C47"]
[WhiteElo "1836"]
[BlackElo "1825"]
[PlyCount "69"]
[EventDate "2024.09.05"]
[EventType "team-tourn"]
[EventCountry "HUN"]
[WhiteTeam "Fiji"]
[BlackTeam "Suriname"]
[WhiteTeamCountry "FIJ"]
[TimeControl "40/5400+30:1800+30"]

1. e4 e5 2. Nf3 Nf6 3. Nc3 Nc6 4. d4 exd4 5. Nxd4 Bc5 6. Be3 Nxd4 7. Bxd4 Qe7 8. Bxc5 Qxc5 9. Be2 d6 10. Qd3 Bd7 11. a3 O-O-O 12. b4 Qe5 13. O-O g5 14. Rfe1 h5 15. Qg3 Qe7 16. Nd5 Nxd5 17. exd5 Rde8 18. Qc3 Qe5 19. Qxe5 Rxe5 20. Bc4 Rhe8 21. Kf1 Bf5 22. Bb3 Be4 23. f3 Bf5 24. Rxe5 Rxe5 25. Re1 b5 26. Rxe5 dxe5 27. Ke2 f6 28. a4 a6 29. c4 c6 30. axb5 axb5 31. c5 cxd5 32. Bxd5 Kd7 33. Ke3 Bg6 34. Bb7 Kc7 35. Bd5 1/2-1/2

[Event "45th FIDE Olympiad 2024"]
[Site "Budapest"]
[Date "2024.09.15"]
[Round "5.40"]
[White "Svane, Frederik"]
[Black "Draskovic, Luka"]
[Result "1/2-1/2"]
[ECO "C70"]
[WhiteElo "2640"]
[BlackElo "2497"]
[Annotator "TA"]
[PlyCount "91"]
[EventDate "2024.09.05"]
[EventType "team-tourn"]
[EventCountry "HUN"]
[SourceTitle "playchess.com"]
[Source "ChessBase"]
[SourceQuality "1"]
[WhiteTeam "Germany"]
[BlackTeam "Montenegro"]
[WhiteTeamCountry "GER"]
[BlackTeamCountry "MNE"]
[TimeControl "40/5400+30:1800+30"]

{[%evp 11,91,32,27,32,37,32,28,6,41,27,23,20,17,24,24,8,8,16,16,14,10,11,11,26,37,2,0,8,15,13,7,13,21,19,23,33,24,0,18,17,40,21,41,20,23,21,26,17,23,32,31,30,28,28,23,4,6,0,0,0,0,0,0,0,0,0,0,0,0,0,0,0,0,0,0,0,0,0,0,0,0,-68]} 1. e4 {[%emt 0:00:08]} e5 {[%emt 0:00:13]} 2. Nf3 {[%emt 0:00:08]} Nc6 {[%emt 0:00:05]} 3. Bb5 {[%emt 0:00:13]} a6 {[%emt 0:00:11]} 4. Ba4 {[%emt 0:00:08]} Nge7 {[%emt 0:00:14]} 5. c3 {[%emt 0:02:55]} Ng6 {[%emt 0:01:08]} 6. d4 {[%emt 0:00:30] C70: Ruy Lopez: 3...a6 4 Ba4, Norwegian and Delayed Schliemann.} exd4 {[%emt 0:00:46]} 7. cxd4 {[%emt 0:02:03]} Bb4+ {[%emt 0:00:51]} 8. Nc3 {[%emt 0:01:21]} d5 {[%emt 0:00:50]} 9. O-O {[%emt 0:00:18]} dxe4 $1 {[%emt 0:01:04]} 10. Nxe4 {[%emt 0:00:06]} O-O {[%emt 0:00:47]} 11. a3 {[%emt 0:03:38]} Be7 {[%emt 0:00:26]} 12. h3 $146 {[%emt 0:12:37]} ({Predecessor:} 12. d5 Nce5 13. Nxe5 Nxe5 14. Bb3 Bd6 15. Bg5 Qd7 16. Nxd6 cxd6 17. f4 Ng4 18. f5 {0-1 Yao,L (2370)-Lehaci,M (2242) EU-ch (Women) 24th 2024 (10)}) 12... Be6 {[%emt 0:08:42]} 13. Re1 {[%emt 0:15:53]} Bd5 {[%emt 0:12:41]} 14. Nc3 {[%emt 0:16:15]} Bxf3 {[%emt 0:13:00]} 15. Qxf3 {[%emt 0:00:06]} Qxd4 {[%emt 0:01:10]} 16. Bxc6 {[%emt 0:02:24]} bxc6 {[%emt 0:00:19]} 17. Qxc6 {[%emt 0:00:31]} Bd6 {[%emt 0:03:13]} 18. Re4 {[%emt 0:05:15]} Qf6 {[%emt 0:01:49]} 19. Qc4 {[%emt 0:00:09]} Rae8 {[%emt 0:04:48]} 20. Be3 {[%emt 0:03:42]} (20. Qxa6 $2 {too greedy.} Bh2+ 21. Kxh2 Qxa6 $19) 20... Rxe4 {[%emt 0:01:56]} 21. Qxe4 {[%emt 0:00:06]} Rb8 {[%emt 0:02:13]} 22. Bd4 {[%emt 0:03:51]} Qf4 {[%emt 0:03:10]} 23. g3 {[%emt 0:02:14]} Qh6 {[%emt 0:13:25]} 24. h4 {[%emt 0:06:38]} Nf8 {[%emt 0:02:55]} 25. b4 {[%emt 0:02:55]} Ne6 {[%emt 0:00:42]} 26. Be3 {[%emt 0:00:05]} Qg6 {[%emt 0:01:04]} 27. Qxg6 {[%emt 0:03:38]} hxg6 {[%emt 0:00:06]} 28. Ne4 {[%emt 0:02:16]} Be7 {[%emt 0:00:42]} 29. Rc1 {[%emt 0:00:53]} Ra8 {[%emt 0:04:05]} 30. Ng5 {[%emt 0:03:20]} Bxg5 {[%emt 0:03:08]} 31. hxg5 {[%emt 0:00:04]} Kf8 {[%emt 0:03:59]} 32. Kg2 {[%emt 0:02:27]} Ke7 {[%emt 0:01:55]} 33. f4 {[%emt 0:01:44]} Rd8 {[%emt 0:01:02]} 34. Kf3 {[%emt 0:02:43]} Rd3 {[%emt 0:01:18]} 35. a4 {[%emt 0:00:09]} Kd7 {[%emt 0:01:47]} 36. g4 {[%emt 0:01:20]} Ra3 {[%emt 0:01:23]} 37. a5 {[%emt 0:00:11]} f5 {[%emt 0:02:24]} 38. gxf6 {[%emt 0:00:07]} gxf6 {[%emt 0:00:05]} 39. Rd1+ {[%emt 0:02:20]} Kc6 {[%emt 0:01:14]} 40. f5 {[%emt 0:02:20]} gxf5 {[%emt 0:02:00]} 41. gxf5 {[%emt 0:30:09]} Ng7 {[%emt 0:33:49]} 42. Rc1+ {[%emt 0:00:00]} Kd7 {[%emt 0:00:00]} 43. Rd1+ {[%emt 0:00:00]} Kc6 {[%emt 0:00:00]} 44. Kf4 {[%emt 0:00:00]} Nh5+ {[%emt 0:00:00]} (44... Nxf5 45. Bc1 Rb3 46. Kxf5 $18) 45. Kf3 {[%emt 0:00:00]} Ng7 {[%emt 0:00:00]} 46. Ke4 {[%emt 0:00:55]} (46. Rc1+ $11 Kb7 47. Ke4) 1/2-1/2

[Event "45th FIDE Olympiad 2024"]
[Site "Budapest"]
[Date "2024.09.15"]
[Round "5.40"]
[White "Kalka, Shiva"]
[Black "Prakash, Prashil"]
[Result "1-0"]
[ECO "C54"]
[WhiteElo "1849"]
[BlackElo "1745"]
[PlyCount "73"]
[EventDate "2024.09.05"]
[EventType "team-tourn"]
[EventCountry "HUN"]
[WhiteTeam "Suriname"]
[BlackTeam "Fiji"]
[BlackTeamCountry "FIJ"]
[TimeControl "40/5400+30:1800+30"]

1. e4 e5 2. Nf3 Nc6 3. d4 exd4 4. Bc4 Bc5 5. c3 Nf6 6. e5 d5 7. Bb5 Ne4 8. cxd4 Bb6 9. Qc2 Bd7 10. Bxc6 Bxc6 11. O-O O-O 12. a4 a6 13. b3 Bd7 14. Ba3 Re8 15. Nbd2 Bf5 16. Qb2 c6 17. Kh1 Re6 18. Rad1 Rh6 19. Nxe4 Bxe4 20. Qe2 Qd7 21. Ng1 Qf5 22. Rd2 Qf4 23. h3 Re8 24. f3 Bf5 25. g4 Bc8 26. Qh2 Qe3 27. Qf2 Qxb3 28. Bd6 Qxa4 29. Kg2 f6 30. f4 Qb3 31. Nf3 fxe5 32. fxe5 Rxd6 33. Ng5 Rdd8 34. Qf7+ Kh8 35. Rdf2 Qa3 36. Qh5 Qd3 37. Qxe8+ 1-0

[Event "45th FIDE Olympiad 2024"]
[Site "Budapest"]
[Date "2024.09.15"]
[Round "5.41"]
[White "Vitiugov, Nikita"]
[Black "Kuybokarov, Temur"]
[Result "1/2-1/2"]
[ECO "C77"]
[WhiteElo "2676"]
[BlackElo "2562"]
[Annotator "TA"]
[PlyCount "69"]
[EventDate "2024.09.05"]
[EventType "team-tourn"]
[EventCountry "HUN"]
[SourceTitle "playchess.com"]
[Source "ChessBase"]
[SourceQuality "1"]
[WhiteTeam "England"]
[BlackTeam "Australia"]
[WhiteTeamCountry "ENG"]
[BlackTeamCountry "AUS"]
[TimeControl "40/5400+30:1800+30"]

{[%evp 13,69,19,23,27,29,31,31,20,31,14,25,7,27,19,33,27,13,8,18,24,41,10,31,0,12,0,0,0,0,0,5,0,14,18,20,0,7,0,7,-9,-12,-24,0,0,12,-10,-12,-13,-13,-11,-16,-14,0,-9,-2,-8,-8,-8]} 1. e4 {[%emt 0:00:07]} e5 {[%emt 0:00:07]} 2. Nf3 {[%emt 0:00:06]} Nc6 {[%emt 0:00:05]} 3. Bb5 {[%emt 0:00:14][%cal Bf1b5,Bb5a4,Ba4b3][%mdl 32]} a6 {[%emt 0:00:15]} 4. Ba4 {[%emt 0:00:06]} Nf6 {[%emt 0:00:14]} 5. d3 {[%emt 0:00:30]} b5 {[%emt 0:04:49]} 6. Bb3 {[%emt 0:00:06]} Bc5 {[%emt 0:01:29]} 7. c3 {[%emt 0:00:36]} d6 {[%emt 0:04:20]} 8. Bg5 {[%emt 0:00:31][%cal Bc1g5,Bg5h4,Bh4g3][%mdl 32]} h6 {[%emt 0:04:58]} 9. Bh4 {[%emt 0:00:49]} g5 {[%emt 0:04:16]} 10. Bg3 {[%emt 0:00:07] White is slightly better.} Bb6 {[%emt 0:08:03]} 11. a4 {[%emt 0:01:17] axb5 would now be deadly.} Bd7 {[%emt 0:03:45]} 12. Nbd2 {[%emt 0:05:29]} Rb8 {[%emt 0:03:41]} (12... Nh5 {seems wilder.} 13. axb5 axb5 14. Rxa8 Qxa8 15. Nxe5 Nxg3 16. Bxf7+ Ke7) 13. axb5 {[%emt 0:03:07]} axb5 {[%emt 0:00:08]} 14. O-O {[%emt 0:00:59][%cal Od3d4]} O-O {[%emt 0:08:41]} 15. Re1 {[%emt 0:04:39]} Re8 {[%emt 0:06:53]} 16. Nf1 {[%emt 0:05:12]} Qe7 {[%emt 0:09:12]} 17. d4 {[%emt 0:23:00]} Qf8 {[%emt 0:16:24]} 18. Qd3 {[%emt 0:01:04]} Rbd8 {[%emt 0:01:49]} 19. Rad1 {[%emt 0:08:17]} (19. Qxb5 $2 {perishes.} Nxd4 20. Qb4 Bc5 $19) 19... Qg7 {[%emt 0:04:12]} 20. dxe5 {[%emt 0:09:00]} Nxe5 {[%emt 0:01:36]} 21. Nxe5 {[%emt 0:01:21]} dxe5 {[%emt 0:00:06]} 22. Ne3 {[%emt 0:00:15]} c6 {[%emt 0:01:13]} 23. Qc2 {[%emt 0:09:53]} Nh5 {[%emt 0:01:32]} 24. Rd6 {[%emt 0:06:34]} Bc5 {[%emt 0:02:56]} 25. Rd2 {[%emt 0:00:09]} Bc8 {[%emt 0:00:57]} 26. Red1 {[%emt 0:08:03]} Rxd2 {[%emt 0:00:25]} 27. Qxd2 {[%emt 0:00:03]} Nxg3 {[%emt 0:01:34]} 28. hxg3 {[%emt 0:01:09] The position is equal.} g4 {[%emt 0:02:37]} 29. Ba2 {[%emt 0:03:56]} Qg5 {[%emt 0:00:59]} 30. Nf5 {[%emt 0:01:48]} Qxd2 {[%emt 0:02:42]} 31. Rxd2 {[%emt 0:00:02]} Bxf5 {[%emt 0:00:14]} 32. exf5 {[%emt 0:00:04]} Kg7 {[%emt 0:02:21]} 33. Kf1 {[%emt 0:02:32]} b4 {[%emt 0:01:11]} 34. Rd7 {[%emt 0:00:21]} Re7 {[%emt 0:00:11]} 35. Rxe7 {[%emt 0:00:07] An interesting draw.   Weighted Error Value: White=0.09 (flawless) /Black=0.06 (flawless) .  Inaccurate:     	White=1     	---        OK:         	White=8     	Black=10     Best:        	---       	Black=1} 1/2-1/2

[Event "45th FIDE Olympiad 2024"]
[Site "Budapest"]
[Date "2024.09.15"]
[Round "5.41"]
[White "Ebosse, Kingue Victor Patric"]
[Black "Tchouka, Yakini"]
[Result "0-1"]
[ECO "B78"]
[WhiteElo "2014"]
[BlackElo "1932"]
[PlyCount "106"]
[EventDate "2024.09.05"]
[EventType "team-tourn"]
[EventCountry "HUN"]
[WhiteTeam "Cameroon"]
[BlackTeam "Togo"]
[WhiteTeamCountry "CAM"]
[BlackTeamCountry "TOG"]
[TimeControl "40/5400+30:1800+30"]

1. e4 c5 2. Nf3 d6 3. d4 cxd4 4. Nxd4 Nf6 5. Nc3 g6 6. Be3 Bg7 7. f3 Nc6 8. Bc4 Bd7 9. Qd2 O-O 10. h4 h5 11. O-O-O Rc8 12. Bb3 Ne5 13. g4 hxg4 14. h5 Nxh5 15. Bh6 e6 16. Bxg7 Kxg7 17. fxg4 Nxg4 18. Rdg1 Ngf6 19. Nf3 Qc7 20. Qg5 Rh8 21. e5 dxe5 22. Nxe5 Rcg8 23. Rf1 Be8 24. Rh4 Qe7 25. Rd4 Nd5 26. Qd2 Nxc3 27. Qxc3 Qg5+ 28. Rd2 Kf8 29. Qc5+ Qe7 30. Qxa7 Ng3 31. Re1 Rh5 32. Qf2 Qh4 33. Rd4 Qh2 34. Qe3 Nf5 35. Ng4 Qh4 36. Qe5 Nxd4 37. Qd6+ Qe7 38. Qxd4 Rgh8 39. Nf6 Rh1 40. Rxh1 Rxh1+ 41. Kd2 e5 42. Qf2 Qb4+ 43. c3 Qf4+ 44. Qxf4 exf4 45. Bd5 Rh2+ 46. Kd3 Bc6 47. b4 g5 48. a4 Bxd5 49. Nxd5 f3 50. Ke3 f2 51. Ke2 g4 52. Ne3 g3 53. a5 Rh1 {0-} 0-1

[Event "45th FIDE Olympiad 2024"]
[Site "Budapest"]
[Date "2024.09.15"]
[Round "5.42"]
[White "Cheng, Bobby"]
[Black "Howell, David W L"]
[Result "1-0"]
[ECO "E01"]
[WhiteElo "2588"]
[BlackElo "2677"]
[Annotator "RC"]
[PlyCount "163"]
[EventDate "2024.09.05"]
[EventType "team-tourn"]
[EventCountry "HUN"]
[SourceTitle "playchess.com"]
[Source "ChessBase"]
[SourceQuality "1"]
[WhiteTeam "Australia"]
[BlackTeam "England"]
[WhiteTeamCountry "AUS"]
[BlackTeamCountry "ENG"]
[TimeControl "40/5400+30:1800+30"]

1. d4 {[%emt 0:00:03]} Nf6 {[%emt 0:00:35]} 2. c4 {[%emt 0:00:04]} e6 {[%emt 0:00:40]} 3. Nf3 {[%emt 0:00:22]} d5 {[%emt 0:00:42]} 4. g3 {[%emt 0:00:06]} h6 {[%emt 0:01:10]} 5. Bg2 {[%emt 0:00:40]} Bd6 {[%emt 0:00:12]} 6. O-O {[%emt 0:02:25]} O-O {[%emt 0:00:19]} 7. b3 {[%emt 0:04:56]} b6 {[%emt 0:02:08]} 8. Bb2 {[%emt 0:01:23]} Bb7 {[%emt 0:00:23]} 9. Nc3 {[%emt 0:01:13]} Nbd7 {[%emt 0:01:14]} 10. Rc1 {[%emt 0:03:47]} Re8 {[%emt 0:01:22]} 11. Qc2 {[%emt 0:07:46]} Rc8 {[%emt 0:44:23]} 12. Rfd1 {[%emt 0:01:54]} c5 {[%emt 0:08:01]} 13. cxd5 {[%emt 0:25:18]} Nxd5 {[%emt 0:04:08]} 14. Nxd5 {[%emt 0:07:57]} cxd4 {[%emt 0:10:22]} 15. Qd2 {[%emt 0:04:06]} Rxc1 {[%emt 0:01:40]} 16. Qxc1 {[%emt 0:04:28]} Bxd5 {[%emt 0:03:40]} 17. Nxd4 {[%emt 0:00:07]} Bxg2 {[%emt 0:01:25]} 18. Kxg2 {[%emt 0:00:06]} Bc5 {[%emt 0:00:10]} 19. Nf3 {[%emt 0:07:12]} Qe7 {[%emt 0:02:10]} 20. Qc3 {[%emt 0:05:49]} f6 {[%emt 0:05:07]} 21. Qc4 {[%emt 0:04:00]} Nf8 {[%emt 0:00:27]} 22. Bd4 {[%emt 0:01:03]} Bxd4 {[%emt 0:03:37]} 23. Nxd4 {[%emt 0:01:33]} Qd7 {[%emt 0:00:14]} 24. Rc1 {[%emt 0:00:59]} Ng6 {[%emt 0:02:45]} 25. Qc6 {[%emt 0:02:32]} Qe7 {[%emt 0:00:22]} 26. Qa4 {[%emt 0:01:35]} Qb7+ {[%emt 0:02:21]} 27. Kg1 {[%emt 0:01:21]} Re7 {[%emt 0:00:20]} 28. Qc4 {[%emt 0:05:14]} Ne5 {[%emt 0:01:38]} 29. Qc8+ {[%emt 0:03:58]} Kf7 {[%emt 0:00:01]} 30. Qxb7 {[%emt 0:01:08]} Rxb7 {[%emt 0:00:06]} 31. f4 {[%emt 0:00:47]} Ng6 {[%emt 0:02:12]} 32. Kf2 {[%emt 0:00:53]} e5 {[%emt 0:00:38]} 33. Nc6 {[%emt 0:01:11]} Rd7 {[%emt 0:00:35]} 34. fxe5 {[%emt 0:00:29]} fxe5 {[%emt 0:01:43]} 35. Ke3 {[%emt 0:00:42]} Ke6 {[%emt 0:00:06]} 36. b4 {[%emt 0:00:37]} Nh8 {[%emt 0:00:57]} 37. Nb8 {[%emt 0:00:42]} Rd8 {[%emt 0:00:13]} 38. Na6 {[%emt 0:00:23]} Rd7 {[%emt 0:00:43]} 39. Rc6+ {[%emt 0:00:35]} Ke7 {[%emt 0:00:27]} 40. Nc7 {[%emt 0:00:29]} Nf7 {[%emt 0:00:40]} 41. Nb5 {[%emt 0:10:34]} Nd8 {[%emt 0:10:54]} 42. Rc3 {[%emt 0:02:25]} Ke6 {[%emt 0:08:05]} 43. Rc8 {[%emt 0:03:24]} Kf5 {[%emt 0:04:49]} 44. h3 {[%emt 0:02:08]} h5 {[%emt 0:00:42]} 45. a3 {[%emt 0:01:05]} Ne6 {[%emt 0:02:26]} 46. Ra8 {[%emt 0:01:50]} h4 {[%emt 0:00:30]} 47. gxh4 {[%emt 0:00:30]} Nd4 {[%emt 0:04:32]} 48. Nxd4+ {[%emt 0:09:51]} Rxd4 {[%emt 0:00:01]} 49. Rxa7 {[%emt 0:00:49]} Rxh4 {[%emt 0:00:07]} 50. Rf7+ {[%emt 0:01:50]} Ke6 {[%emt 0:02:02]} 51. Rxg7 Rxh3+ {[%emt 0:00:07]} 52. Ke4 {[%emt 0:01:14]} Rh4+ {[%emt 0:01:20]} 53. Kd3 {[%emt 0:00:12]} Kd5 {[%emt 0:00:49]} 54. e4+ {[%emt 0:00:49]} Kc6 {[%emt 0:00:28]} 55. a4 {[%emt 0:00:11]} Rh1 {[%emt 0:00:33]} 56. Rg6+ {[%emt 0:00:18]} Kc7 {[%emt 0:00:50]} 57. Kc4 {[%emt 0:00:27]} Re1 {[%emt 0:01:24]} 58. Kb5 {[%emt 0:01:27]} Rxe4 {[%emt 0:00:00]} 59. Rc6+ {[%emt 0:00:14]} Kb7 {[%emt 0:00:00]} 60. Rxb6+ {[%emt 0:00:05]} Ka7 {[%emt 0:00:00]} 61. Re6 {[%emt 0:00:13]} Rh4 {[%emt 0:00:07]} 62. Re7+ {[%emt 0:00:26]} Ka8 {[%emt 0:00:05]} 63. Re8+ {[%emt 0:00:02]} Ka7 {[%emt 0:00:07]} 64. Re7+ {[%emt 0:00:03]} Ka8 {[%emt 0:00:05]} 65. Rxe5 {[%emt 0:00:02]} Rh6 {[%emt 0:00:05]} 66. Re8+ {[%emt 0:00:04]} Kb7 {[%emt 0:00:04]} 67. Re7+ {[%emt 0:00:02]} Ka8 {[%emt 0:00:05]} 68. a5 {[%emt 0:00:06]} Kb8 {[%emt 0:00:04]} 69. Rg7 {[%emt 0:00:05]} Rh5+ {[%emt 0:00:29]} 70. Ka4 {[%emt 0:00:05]} Rh6 {[%emt 0:00:09]} 71. Rg4 {[%emt 0:00:11]} Ka7 {[%emt 0:03:45]} 72. b5 {[%emt 0:01:01]} Rf6 {[%emt 0:00:58]} 73. Rg7+ {[%emt 0:00:12]} Kb8 {[%emt 0:00:20]} 74. a6 {[%emt 0:00:06]} Ka8 {[%emt 0:00:34]} 75. Ka5 {[%emt 0:00:05]} Rf8 {[%emt 0:00:33]} 76. Rg5 {[%emt 0:00:08]} Rh8 {[%emt 0:00:48]} 77. Rc5 {[%emt 0:00:12]} Rg8 {[%emt 0:00:27]} 78. b6 {[%emt 0:00:10]} Rh8 {[%emt 0:00:08]} 79. Rc8+ {[%emt 0:01:28]} Rxc8 {[%emt 0:00:15]} 80. b7+ {[%emt 0:00:03]} Ka7 {[%emt 0:01:00]} 81. bxc8=N+ {[%emt 0:00:22]} Kb8 {[%emt 0:00:00]} 82. Nd6 {[%emt 0:00:27]} 1-0

[Event "45th FIDE Olympiad 2024"]
[Site "Budapest"]
[Date "2024.09.15"]
[Round "5.42"]
[White "Egbe, Kossi Thierry"]
[Black "Zebaze, Dongmo Loic Dylane"]
[Result "1/2-1/2"]
[ECO "C01"]
[WhiteElo "1847"]
[BlackElo "1914"]
[PlyCount "118"]
[EventDate "2024.09.05"]
[EventType "team-tourn"]
[EventCountry "HUN"]
[WhiteTeam "Togo"]
[BlackTeam "Cameroon"]
[WhiteTeamCountry "TOG"]
[BlackTeamCountry "CAM"]
[TimeControl "40/5400+30:1800+30"]

1. e4 e6 2. d4 d5 3. exd5 exd5 4. Bd3 c5 5. Nf3 c4 6. Be2 Bd6 7. Nc3 Nf6 8. Bg5 Be6 9. O-O O-O 10. Nb5 Be7 11. b3 a6 12. Nc3 Qa5 13. Bd2 Bb4 14. Qe1 Nc6 15. a3 Bxc3 16. Bxc3 Qc7 17. bxc4 dxc4 18. Bb2 Rfe8 19. Qd1 Rad8 20. c3 Na5 21. Nd2 Bd5 22. Bf3 Ne4 23. Bxe4 Bxe4 24. Re1 Bd3 25. Qa4 b5 26. Qb4 Qf4 27. Nf3 Nb3 28. Rxe8+ Rxe8 29. Re1 Rxe1+ 30. Nxe1 Qe4 31. Nf3 Qe2 32. h3 Qxb2 33. Qe7 Qc1+ 34. Kh2 Qf4+ 35. Kg1 h6 36. d5 Bf5 37. Ne5 f6 38. Nd7 Bxd7 39. Qxd7 Nd2 40. Qe6+ Kh7 41. d6 Ne4 42. d7 Qxf2+ 43. Kh2 Qf4+ 44. Kg1 Nc5 45. Qc6 Qe3+ 46. Kh1 Nxd7 47. Qxd7 Qxc3 48. Qf5+ Kg8 49. Qe6+ Kf8 50. Qd6+ Kf7 51. Qd7+ Kg8 52. Qc8+ Kf7 53. Qd7+ Kg6 54. Qg4+ Kh7 55. Qf5+ Kg8 56. Qc8+ Kh7 57. Qf5+ g6 58. Qd7+ Kg8 59. Qe8+ Kg7 1/2-1/2